[Event "Late-Titled-Tuesday-Blitz-January-30-2024"]
[Site "Chess.com"]
[Date "2024.01.30"]
[Round "11"]
[White "Byniolus"]
[Black "ChristopherYoo"]
[Result "0-1"]
[WhiteElo "2840"]
[BlackElo "2941"]
[TimeControl "180+1"]
[EndTime "16:05:18 PST"]
[Termination "ChristopherYoo won on time"]

1. d4 {[%clk 0:03:00.4]} 1... d5 {[%clk 0:02:59.8]} 2. Nf3 {[%clk 0:03:00.4]}
2... Nf6 {[%clk 0:03:00]} 3. Bf4 {[%clk 0:03:00.7]} 3... Bf5 {[%clk 0:02:59.9]}
4. e3 {[%clk 0:03:00]} 4... e6 {[%clk 0:03:00.5]} 5. Bd3 {[%clk 0:03:00.1]} 5...
Ne4 {[%clk 0:03:00.1]} 6. h3 {[%clk 0:02:56.3]} 6... Bd6 {[%clk 0:02:58.4]} 7.
Bxd6 {[%clk 0:02:52.2]} 7... cxd6 {[%clk 0:02:59.3]} 8. O-O {[%clk 0:02:52.2]}
8... O-O {[%clk 0:02:57.5]} 9. Nbd2 {[%clk 0:02:48.4]} 9... Nc6 {[%clk
0:02:57.4]} 10. a3 {[%clk 0:02:46.9]} 10... Rc8 {[%clk 0:02:55.7]} 11. Qe2
{[%clk 0:02:36.1]} 11... e5 {[%clk 0:02:47.7]} 12. c3 {[%clk 0:02:16.7]} 12...
Re8 {[%clk 0:02:28.1]} 13. Bxe4 {[%clk 0:02:07.7]} 13... dxe4 {[%clk 0:02:26.7]}
14. Nh2 {[%clk 0:02:06.5]} 14... exd4 {[%clk 0:02:12.9]} 15. cxd4 {[%clk
0:02:07.4]} 15... Qb6 {[%clk 0:02:12.5]} 16. b4 {[%clk 0:01:54.5]} 16... Ne7
{[%clk 0:02:01.3]} 17. Rfc1 {[%clk 0:01:47.5]} 17... Nd5 {[%clk 0:02:00.9]} 18.
Nc4 {[%clk 0:01:42.2]} 18... Qa6 {[%clk 0:02:00.7]} 19. Qf1 {[%clk 0:01:40.6]}
19... Bd7 {[%clk 0:01:56.8]} 20. Nd2 {[%clk 0:00:39.9]} 20... Bb5 {[%clk
0:01:45.9]} 21. Qd1 {[%clk 0:00:38.8]} 21... Nc3 {[%clk 0:01:44.4]} 22. Rxc3
{[%clk 0:00:31.1]} 22... Rxc3 {[%clk 0:01:45.3]} 23. Qg4 {[%clk 0:00:18.3]}
23... Rxa3 {[%clk 0:01:43.4]} 24. Rxa3 {[%clk 0:00:11.4]} 24... Qxa3 {[%clk
0:01:44.3]} 25. Nhf1 {[%clk 0:00:08.3]} 25... Bxf1 {[%clk 0:01:39]} 26. Nxf1
{[%clk 0:00:07.7]} 26... Qxb4 {[%clk 0:01:38.3]} 27. Ng3 {[%clk 0:00:06.3]}
27... Qe1+ {[%clk 0:01:25.7]} 28. Kh2 {[%clk 0:00:06.8]} 28... Qxf2 {[%clk
0:01:25.6]} 29. Nf5 {[%clk 0:00:05.3]} 29... g6 {[%clk 0:01:25.4]} 30. Nxd6
{[%clk 0:00:05.8]} 30... Re6 {[%clk 0:01:24.6]} 31. Nxb7 {[%clk 0:00:03.6]}
31... h5 {[%clk 0:01:17.9]} 32. Qg5 {[%clk 0:00:02.3]} 32... h4 {[%clk
0:01:16.7]} 33. d5 {[%clk 0:00:02.1]} 33... Qg3+ {[%clk 0:01:14.1]} 34. Qxg3
{[%clk 0:00:02.5]} 34... hxg3+ {[%clk 0:01:15]} 35. Kxg3 {[%clk 0:00:03.4]}
35... Re7 {[%clk 0:01:08.2]} 36. Nc5 {[%clk 0:00:02.9]} 36... Re5 {[%clk
0:01:08.6]} 37. Nd7 {[%clk 0:00:02.8]} 37... Rf5 {[%clk 0:01:06.9]} 38. d6
{[%clk 0:00:02.3]} 38... Kg7 {[%clk 0:01:07.3]} 39. Nb8 {[%clk 0:00:02.2]} 39...
Rd5 {[%clk 0:01:07.2]} 40. d7 {[%clk 0:00:03.1]} 40... a5 {[%clk 0:01:05.3]} 41.
Nc6 {[%clk 0:00:03.4]} 41... Rxd7 {[%clk 0:01:04.7]} 42. Nxa5 {[%clk 0:00:04.1]}
42... f5 {[%clk 0:01:05.1]} 43. Nc4 {[%clk 0:00:03.9]} 43... Kf6 {[%clk
0:01:05.5]} 44. h4 {[%clk 0:00:04.5]} 44... Rc7 {[%clk 0:01:04.4]} 45. Nd2
{[%clk 0:00:04.4]} 45... Rc2 {[%clk 0:01:04.7]} 46. Nf1 {[%clk 0:00:04.4]} 46...
Ke5 {[%clk 0:01:04]} 47. h5 {[%clk 0:00:03.6]} 47... gxh5 {[%clk 0:01:03.6]} 48.
Kh3 {[%clk 0:00:02.9]} 48... Rc1 {[%clk 0:01:02.4]} 49. Ng3 {[%clk 0:00:03.1]}
49... Re1 {[%clk 0:01:02]} 50. Nxh5 {[%clk 0:00:03.5]} 50... Rh1+ {[%clk
0:01:02.1]} 0-1

[Event "Late-Titled-Tuesday-Blitz-January-30-2024"]
[Site "Chess.com"]
[Date "2024.01.30"]
[Round "11"]
[White "Bala-Afiada"]
[Black "finec2"]
[Result "0-1"]
[WhiteElo "2021"]
[BlackElo "2197"]
[TimeControl "180+1"]
[EndTime "16:05:21 PST"]
[Termination "finec2 won by resignation"]

1. d4 {[%clk 0:02:42.5]} 1... Nf6 {[%clk 0:02:59.1]} 2. c4 {[%clk 0:02:43]} 2...
g6 {[%clk 0:02:59.3]} 3. Nc3 {[%clk 0:02:43.1]} 3... Bg7 {[%clk 0:02:59.5]} 4.
e4 {[%clk 0:02:43.6]} 4... d6 {[%clk 0:02:59.7]} 5. Nf3 {[%clk 0:02:44.1]} 5...
O-O {[%clk 0:02:59.7]} 6. Be2 {[%clk 0:02:44.2]} 6... Nbd7 {[%clk 0:02:58.9]} 7.
Be3 {[%clk 0:02:38.6]} 7... e5 {[%clk 0:02:56.5]} 8. d5 {[%clk 0:02:38.4]} 8...
Nc5 {[%clk 0:02:44.4]} 9. Qc2 {[%clk 0:02:37.7]} 9... a5 {[%clk 0:02:42.4]} 10.
h4 {[%clk 0:02:36.3]} 10... Bg4 {[%clk 0:02:23]} 11. Nd2 {[%clk 0:02:29.6]}
11... Bxe2 {[%clk 0:02:22]} 12. Nxe2 {[%clk 0:02:30.5]} 12... h5 {[%clk
0:02:15.7]} 13. f3 {[%clk 0:02:28.8]} 13... a4 {[%clk 0:01:56.5]} 14. Kf2 {[%clk
0:02:23.6]} 14... Nfd7 {[%clk 0:01:44.7]} 15. g4 {[%clk 0:02:15.5]} 15... hxg4
{[%clk 0:01:37.1]} 16. fxg4 {[%clk 0:02:16.4]} 16... f5 {[%clk 0:01:27.9]} 17.
gxf5 {[%clk 0:02:12.4]} 17... gxf5 {[%clk 0:01:27.3]} 18. Rag1 {[%clk
0:01:48.2]} 18... f4 {[%clk 0:01:26.1]} 19. Bxc5 {[%clk 0:01:47.6]} 19... Nxc5
{[%clk 0:01:22.8]} 20. Nf3 {[%clk 0:01:35.2]} 20... Kh8 {[%clk 0:01:06.6]} 21.
Rg4 {[%clk 0:01:26.6]} 21... Bf6 {[%clk 0:00:56]} 22. Rhg1 {[%clk 0:01:19.3]}
22... Qe7 {[%clk 0:00:55.7]} 23. R1g2 {[%clk 0:01:14.8]} 23... Rg8 {[%clk
0:00:14.3]} 24. Nc3 {[%clk 0:01:14.4]} 24... Qd7 {[%clk 0:00:11.7]} 25. h5
{[%clk 0:00:59.8]} 25... Rxg4 {[%clk 0:00:11.7]} 26. Rxg4 {[%clk 0:00:59.8]}
26... Qxg4 {[%clk 0:00:12.6]} 27. Qd1 {[%clk 0:00:44.3]} 27... Qg3+ {[%clk
0:00:12.2]} 28. Ke2 {[%clk 0:00:44.7]} 28... Qg2+ {[%clk 0:00:11.1]} 29. Ke1
{[%clk 0:00:41]} 29... Qh1+ {[%clk 0:00:11.3]} 30. Kd2 {[%clk 0:00:39.3]} 30...
Qxd1+ {[%clk 0:00:12.2]} 31. Nxd1 {[%clk 0:00:39.9]} 31... Nxe4+ {[%clk
0:00:12.5]} 32. Kd3 {[%clk 0:00:39.2]} 32... Nc5+ {[%clk 0:00:13.4]} 33. Kc3
{[%clk 0:00:39.2]} 33... Rg8 {[%clk 0:00:14.3]} 34. Kb4 {[%clk 0:00:33.4]} 34...
Rg2 {[%clk 0:00:14.6]} 35. h6 {[%clk 0:00:28.8]} 35... e4 {[%clk 0:00:14.6]} 36.
Ne1 {[%clk 0:00:24.7]} 36... Rg1 {[%clk 0:00:15.2]} 0-1

[Event "Late-Titled-Tuesday-Blitz-January-30-2024"]
[Site "Chess.com"]
[Date "2024.01.30"]
[Round "11"]
[White "karinachess1"]
[Black "PapaieDudu"]
[Result "1-0"]
[WhiteElo "2601"]
[BlackElo "2405"]
[TimeControl "180+1"]
[EndTime "16:05:25 PST"]
[Termination "karinachess1 won by resignation"]

1. c4 {[%clk 0:03:00.9]} 1... e6 {[%clk 0:02:58.9]} 2. Nf3 {[%clk 0:03:00.4]}
2... d5 {[%clk 0:02:58.8]} 3. e3 {[%clk 0:03:01]} 3... Nf6 {[%clk 0:02:58.2]} 4.
Nc3 {[%clk 0:03:01.2]} 4... a6 {[%clk 0:02:58]} 5. Qc2 {[%clk 0:03:00.8]} 5...
dxc4 {[%clk 0:02:57.6]} 6. Bxc4 {[%clk 0:03:00.6]} 6... b5 {[%clk 0:02:57.9]} 7.
Be2 {[%clk 0:03:00.2]} 7... c5 {[%clk 0:02:56.6]} 8. d4 {[%clk 0:03:00.3]} 8...
Nbd7 {[%clk 0:02:55.8]} 9. O-O {[%clk 0:02:59.9]} 9... Bb7 {[%clk 0:02:54.4]}
10. Rd1 {[%clk 0:03:00.2]} 10... Be7 {[%clk 0:02:53.4]} 11. dxc5 {[%clk
0:02:49.9]} 11... Bxc5 {[%clk 0:02:50.9]} 12. Ne5 {[%clk 0:02:36.6]} 12... Qb6
{[%clk 0:02:16]} 13. Nxd7 {[%clk 0:02:32.8]} 13... Nxd7 {[%clk 0:02:14.5]} 14.
Ne4 {[%clk 0:02:28]} 14... Be7 {[%clk 0:02:14.3]} 15. a4 {[%clk 0:02:14]} 15...
Rc8 {[%clk 0:02:11.6]} 16. Qd2 {[%clk 0:02:14.4]} 16... Ne5 {[%clk 0:02:02.9]}
17. Nd6+ {[%clk 0:02:11.3]} 17... Bxd6 {[%clk 0:01:59.6]} 18. Qxd6 {[%clk
0:02:12.2]} 18... Qxd6 {[%clk 0:01:57.4]} 19. Rxd6 {[%clk 0:02:13.1]} 19... Rc2
{[%clk 0:01:37.8]} 20. Bf1 {[%clk 0:02:05]} 20... bxa4 {[%clk 0:01:29.4]} 21.
Rb6 {[%clk 0:01:45.3]} 21... Bc8 {[%clk 0:01:13.9]} 22. f4 {[%clk 0:01:26.5]}
22... Nd7 {[%clk 0:01:05.5]} 23. Rb4 {[%clk 0:01:26]} 23... Nc5 {[%clk
0:01:03.5]} 24. Rc4 {[%clk 0:01:20.3]} 24... Rxc4 {[%clk 0:01:03.5]} 25. Bxc4
{[%clk 0:01:21.2]} 25... Bd7 {[%clk 0:00:56.5]} 26. Bd2 {[%clk 0:01:17.2]} 26...
O-O {[%clk 0:00:42.7]} 27. Bb4 {[%clk 0:01:11.2]} 27... Rc8 {[%clk 0:00:40.4]}
28. Rd1 {[%clk 0:01:11.8]} 28... Be8 {[%clk 0:00:29.2]} 29. Be2 {[%clk
0:00:45.4]} 29... h6 {[%clk 0:00:22.9]} 30. Rc1 {[%clk 0:00:43.9]} 30... Rb8
{[%clk 0:00:17]} 31. Bxc5 {[%clk 0:00:42]} 31... Rxb2 {[%clk 0:00:15.9]} 32.
Bxa6 {[%clk 0:00:41.4]} 32... Kh7 {[%clk 0:00:10.6]} 33. Bd4 {[%clk 0:00:39.4]}
33... Ra2 {[%clk 0:00:09.9]} 34. Bd3+ {[%clk 0:00:36.8]} 34... f5 {[%clk
0:00:10]} 35. Rc7 {[%clk 0:00:35.7]} 35... e5 {[%clk 0:00:03]} 36. Bxe5 {[%clk
0:00:33]} 36... Re2 {[%clk 0:00:01.3]} 37. Rxg7+ {[%clk 0:00:30.7]} 37... Kh8
{[%clk 0:00:01.2]} 1-0

[Event "Late-Titled-Tuesday-Blitz-January-30-2024"]
[Site "Chess.com"]
[Date "2024.01.30"]
[Round "11"]
[White "JCVanDamme10"]
[Black "Eloist"]
[Result "0-1"]
[WhiteElo "2309"]
[BlackElo "2434"]
[TimeControl "180+1"]
[EndTime "16:05:32 PST"]
[Termination "Eloist won on time"]

1. e4 {[%clk 0:02:51.7]} 1... e6 {[%clk 0:03:00.1]} 2. d4 {[%clk 0:02:50.8]}
2... d5 {[%clk 0:03:00.1]} 3. e5 {[%clk 0:02:51.4]} 3... c5 {[%clk 0:02:59.7]}
4. c3 {[%clk 0:02:51.5]} 4... Qb6 {[%clk 0:02:59.1]} 5. Nf3 {[%clk 0:02:51.7]}
5... Bd7 {[%clk 0:02:59]} 6. Be2 {[%clk 0:02:49.6]} 6... cxd4 {[%clk 0:02:57.9]}
7. cxd4 {[%clk 0:02:48.8]} 7... Bb5 {[%clk 0:02:57.9]} 8. Bxb5+ {[%clk
0:02:42.6]} 8... Qxb5 {[%clk 0:02:57.8]} 9. Nc3 {[%clk 0:02:43.2]} 9... Qa6
{[%clk 0:02:55.3]} 10. Qe2 {[%clk 0:02:42.7]} 10... Qxe2+ {[%clk 0:02:54.4]} 11.
Kxe2 {[%clk 0:02:43]} 11... Nc6 {[%clk 0:02:52]} 12. Be3 {[%clk 0:02:42.9]}
12... f6 {[%clk 0:02:44.6]} 13. exf6 {[%clk 0:02:41.6]} 13... gxf6 {[%clk
0:02:42.3]} 14. Rac1 {[%clk 0:02:41.2]} 14... Bd6 {[%clk 0:02:37.2]} 15. Nb5
{[%clk 0:02:38]} 15... Bb8 {[%clk 0:02:36.6]} 16. g4 {[%clk 0:02:26.8]} 16...
Nge7 {[%clk 0:02:34.6]} 17. g5 {[%clk 0:02:19.1]} 17... Rf8 {[%clk 0:02:33.3]}
18. gxf6 {[%clk 0:02:18.5]} 18... Rxf6 {[%clk 0:02:32.6]} 19. Ne5 {[%clk
0:02:12.4]} 19... a6 {[%clk 0:02:25.6]} 20. Nxc6 {[%clk 0:02:05.5]} 20... Nxc6
{[%clk 0:02:20.9]} 21. Nc3 {[%clk 0:02:05.3]} 21... Ba7 {[%clk 0:02:07]} 22.
Rhg1 {[%clk 0:02:01.4]} 22... Kf7 {[%clk 0:02:04.1]} 23. Na4 {[%clk 0:01:51.7]}
23... Rg6 {[%clk 0:01:55.7]} 24. Rgd1 {[%clk 0:01:44.6]} 24... Rg2 {[%clk
0:01:46.5]} 25. h3 {[%clk 0:01:30.9]} 25... Rag8 {[%clk 0:01:34.6]} 26. Nc5
{[%clk 0:01:27.9]} 26... e5 {[%clk 0:01:17.4]} 27. Nxb7 {[%clk 0:01:17.6]} 27...
Nxd4+ {[%clk 0:01:11.5]} 28. Bxd4 {[%clk 0:01:15.3]} 28... Bxd4 {[%clk
0:01:11.4]} 29. Rc7+ {[%clk 0:01:10.6]} 29... Ke6 {[%clk 0:01:10.8]} 30. Rxd4
{[%clk 0:00:38.6]} 30... exd4 {[%clk 0:01:09.1]} 31. Rxh7 {[%clk 0:00:31.3]}
31... Rf8 {[%clk 0:01:09.1]} 32. Rh6+ {[%clk 0:00:27.9]} 32... Ke5 {[%clk
0:01:05.8]} 33. Rh5+ {[%clk 0:00:22.4]} 33... Rf5 {[%clk 0:00:54.3]} 34. Rxf5+
{[%clk 0:00:18.9]} 34... Kxf5 {[%clk 0:00:54.9]} 35. Nc5 {[%clk 0:00:19.4]}
35... a5 {[%clk 0:00:49.5]} 36. Nb3 {[%clk 0:00:10.5]} 36... d3+ {[%clk
0:00:48.6]} 37. Kxd3 {[%clk 0:00:08.7]} 37... Rxf2 {[%clk 0:00:48.2]} 38. Nxa5
{[%clk 0:00:08.3]} 38... Rxb2 {[%clk 0:00:48.2]} 39. Nc6 {[%clk 0:00:06.5]}
39... Rxa2 {[%clk 0:00:41.4]} 40. Nb4 {[%clk 0:00:05.6]} 40... Ra3+ {[%clk
0:00:39.3]} 41. Kd4 {[%clk 0:00:05.9]} 41... Ra4 {[%clk 0:00:39]} 42. Kc5 {[%clk
0:00:05.5]} 42... Ke4 {[%clk 0:00:37.9]} 0-1

[Event "Late-Titled-Tuesday-Blitz-January-30-2024"]
[Site "Chess.com"]
[Date "2024.01.30"]
[Round "11"]
[White "Nemsko"]
[Black "SnekkerAndersen"]
[Result "0-1"]
[WhiteElo "2413"]
[BlackElo "2644"]
[TimeControl "180+1"]
[EndTime "16:05:40 PST"]
[Termination "SnekkerAndersen won by resignation"]

1. e4 {[%clk 0:03:00.9]} 1... a6 {[%clk 0:02:51.6]} 2. d4 {[%clk 0:03:00.2]}
2... h6 {[%clk 0:02:52.5]} 3. Nc3 {[%clk 0:02:54.9]} 3... e6 {[%clk 0:02:52.7]}
4. Be3 {[%clk 0:02:54.7]} 4... d6 {[%clk 0:02:53]} 5. Qd2 {[%clk 0:02:54]} 5...
Nc6 {[%clk 0:02:49.1]} 6. O-O-O {[%clk 0:02:53.6]} 6... Bd7 {[%clk 0:02:49.8]}
7. f4 {[%clk 0:02:53.3]} 7... Nce7 {[%clk 0:02:19.6]} 8. Nf3 {[%clk 0:02:52.9]}
8... g6 {[%clk 0:02:18.9]} 9. g4 {[%clk 0:02:52.1]} 9... Bg7 {[%clk 0:02:18.7]}
10. h4 {[%clk 0:02:50.5]} 10... h5 {[%clk 0:02:18]} 11. gxh5 {[%clk 0:02:48.3]}
11... Rxh5 {[%clk 0:02:17.2]} 12. Be2 {[%clk 0:02:48.6]} 12... Nf6 {[%clk
0:02:15.4]} 13. Ng5 {[%clk 0:02:45.8]} 13... Rh8 {[%clk 0:02:14.9]} 14. Bf3
{[%clk 0:02:23.5]} 14... d5 {[%clk 0:02:11]} 15. Qg2 {[%clk 0:02:12.6]} 15...
dxe4 {[%clk 0:02:09.5]} 16. Ncxe4 {[%clk 0:02:13.5]} 16... Nxe4 {[%clk
0:02:08.4]} 17. Bxe4 {[%clk 0:02:14.4]} 17... Bc6 {[%clk 0:02:08.8]} 18. Bxc6+
{[%clk 0:01:55]} 18... Nxc6 {[%clk 0:02:07.9]} 19. h5 {[%clk 0:01:53.9]} 19...
Qf6 {[%clk 0:01:23.6]} 20. Ne4 {[%clk 0:01:48.4]} 20... Qf5 {[%clk 0:01:17]} 21.
hxg6 {[%clk 0:01:40.8]} 21... fxg6 {[%clk 0:01:17.2]} 22. Nc5 {[%clk 0:01:17.4]}
22... O-O-O {[%clk 0:01:16.5]} 23. c3 {[%clk 0:01:07.8]} 23... Bf6 {[%clk
0:00:55.1]} 24. Rhg1 {[%clk 0:00:37.7]} 24... Rh3 {[%clk 0:00:50.3]} 25. Bd2
{[%clk 0:00:27.3]} 25... Bxd4 {[%clk 0:00:23]} 26. cxd4 {[%clk 0:00:24.9]} 26...
Rxd4 {[%clk 0:00:23.9]} 27. Bc3 {[%clk 0:00:19.2]} 27... Rc4 {[%clk 0:00:23.1]}
28. Nb3 {[%clk 0:00:11.6]} 28... Nb4 {[%clk 0:00:20.7]} 29. Rd8+ {[%clk
0:00:02]} 29... Kxd8 {[%clk 0:00:19.6]} 30. Qg5+ {[%clk 0:00:02.6]} 30... Kc8
{[%clk 0:00:16.3]} 31. Qxf5 {[%clk 0:00:02.4]} 31... gxf5 {[%clk 0:00:16.4]} 32.
a3 {[%clk 0:00:01.3]} 32... Na2+ {[%clk 0:00:16.2]} 33. Kd2 {[%clk 0:00:01.4]}
33... Nxc3 {[%clk 0:00:17.1]} 34. bxc3 {[%clk 0:00:02.3]} 34... Rhxc3 {[%clk
0:00:18]} 35. Rg8+ {[%clk 0:00:01.6]} 35... Kd7 {[%clk 0:00:17.8]} 36. Rg7+
{[%clk 0:00:02.5]} 36... Kd6 {[%clk 0:00:17.8]} 37. Nd4 {[%clk 0:00:02.5]} 37...
Rxd4+ {[%clk 0:00:17.7]} 38. Kxc3 {[%clk 0:00:03]} 38... Rxf4 {[%clk 0:00:18.3]}
39. Rg8 {[%clk 0:00:03.5]} 39... Rf3+ {[%clk 0:00:18.4]} 40. Kb2 {[%clk
0:00:03.2]} 40... f4 {[%clk 0:00:18.3]} 41. Rd8+ {[%clk 0:00:03.9]} 41... Kc6
{[%clk 0:00:18.6]} 42. Re8 {[%clk 0:00:04.1]} 42... Re3 {[%clk 0:00:19.2]} 43.
Rf8 {[%clk 0:00:04.3]} 43... e5 {[%clk 0:00:19.8]} 44. Rf6+ {[%clk 0:00:04.7]}
44... Kc5 {[%clk 0:00:20.1]} 0-1

[Event "Late-Titled-Tuesday-Blitz-January-30-2024"]
[Site "Chess.com"]
[Date "2024.01.30"]
[Round "11"]
[White "rcmz"]
[Black "Orest_Vovk"]
[Result "0-1"]
[WhiteElo "2173"]
[BlackElo "2497"]
[TimeControl "180+1"]
[EndTime "16:05:41 PST"]
[Termination "Orest_Vovk won on time"]

1. b4 {[%clk 0:02:58.6]} 1... g5 {[%clk 0:02:54.4]} 2. Bb2 {[%clk 0:02:57.6]}
2... Nf6 {[%clk 0:02:53.6]} 3. e3 {[%clk 0:02:43.9]} 3... Bg7 {[%clk 0:02:46.8]}
4. h3 {[%clk 0:02:43]} 4... Nh5 {[%clk 0:02:39.5]} 5. d4 {[%clk 0:02:30.7]} 5...
Nf6 {[%clk 0:02:35.3]} 6. Bd3 {[%clk 0:02:28.4]} 6... d5 {[%clk 0:02:34.4]} 7.
Nf3 {[%clk 0:02:27.3]} 7... g4 {[%clk 0:02:33]} 8. hxg4 {[%clk 0:02:24.9]} 8...
Bxg4 {[%clk 0:02:26]} 9. Nbd2 {[%clk 0:02:03]} 9... h5 {[%clk 0:02:24.5]} 10.
Qc1 {[%clk 0:02:00.2]} 10... Nc6 {[%clk 0:02:22.1]} 11. a3 {[%clk 0:01:58.9]}
11... Qd6 {[%clk 0:02:07.3]} 12. c4 {[%clk 0:01:56.7]} 12... O-O-O {[%clk
0:01:59.7]} 13. c5 {[%clk 0:01:46.7]} 13... Qd7 {[%clk 0:01:59.4]} 14. b5 {[%clk
0:01:45.7]} 14... Na5 {[%clk 0:01:58.6]} 15. Ne5 {[%clk 0:01:42.5]} 15... Qe6
{[%clk 0:01:51.4]} 16. Qc3 {[%clk 0:01:20.6]} 16... b6 {[%clk 0:01:41.3]} 17.
Rc1 {[%clk 0:01:17.6]} 17... Ne8 {[%clk 0:01:36.1]} 18. cxb6 {[%clk 0:01:05.6]}
18... axb6 {[%clk 0:01:36]} 19. Nc6 {[%clk 0:01:00.9]} 19... Nxc6 {[%clk
0:01:16.8]} 20. bxc6 {[%clk 0:01:00.2]} 20... Rd6 {[%clk 0:01:17]} 21. Nf1
{[%clk 0:00:50.3]} 21... Kd8 {[%clk 0:00:58.3]} 22. a4 {[%clk 0:00:49]} 22...
Qc8 {[%clk 0:00:56.7]} 23. Ba3 {[%clk 0:00:42.1]} 23... Rf6 {[%clk 0:00:52.6]}
24. a5 {[%clk 0:00:33.3]} 24... bxa5 {[%clk 0:00:48.5]} 25. Qxa5 {[%clk
0:00:32]} 25... e6 {[%clk 0:00:40.4]} 26. Rb1 {[%clk 0:00:20.5]} 26... Bf8
{[%clk 0:00:34.5]} 27. Rb7 {[%clk 0:00:18.5]} 27... Bxa3 {[%clk 0:00:32.3]} 28.
Qxa3 {[%clk 0:00:17.8]} 28... Nd6 {[%clk 0:00:30.6]} 29. Ra7 {[%clk 0:00:15.1]}
29... Bf5 {[%clk 0:00:24.2]} 30. Bxf5 {[%clk 0:00:12.6]} 30... Rxf5 {[%clk
0:00:23.6]} 31. Ra8 {[%clk 0:00:12.5]} 31... Ke7 {[%clk 0:00:22.6]} 32. Rxc8
{[%clk 0:00:12.5]} 32... Rxc8 {[%clk 0:00:23.5]} 33. Nd2 {[%clk 0:00:11]} 33...
Rb8 {[%clk 0:00:17.8]} 34. O-O {[%clk 0:00:10.3]} 34... h4 {[%clk 0:00:17]} 35.
Nf3 {[%clk 0:00:09.8]} 35... h3 {[%clk 0:00:15.2]} 36. Ne5 {[%clk 0:00:06.8]}
36... hxg2 {[%clk 0:00:14.8]} 37. Re1 {[%clk 0:00:04.4]} 37... f6 {[%clk
0:00:11.2]} 38. Nd7 {[%clk 0:00:01.7]} 38... Rh8 {[%clk 0:00:10.9]} 0-1

[Event "Late-Titled-Tuesday-Blitz-January-30-2024"]
[Site "Chess.com"]
[Date "2024.01.30"]
[Round "11"]
[White "lupta_robin"]
[Black "TanitoluwaAps116"]
[Result "0-1"]
[WhiteElo "2564"]
[BlackElo "2746"]
[TimeControl "180+1"]
[EndTime "16:05:43 PST"]
[Termination "TanitoluwaAps116 won by resignation"]

1. d4 {[%clk 0:03:00.9]} 1... Nf6 {[%clk 0:02:59.3]} 2. c4 {[%clk 0:03:01.5]}
2... e6 {[%clk 0:02:57]} 3. Nc3 {[%clk 0:03:00.9]} 3... Bb4 {[%clk 0:02:56.3]}
4. Nf3 {[%clk 0:02:58.7]} 4... O-O {[%clk 0:02:45.3]} 5. e3 {[%clk 0:02:59.1]}
5... b6 {[%clk 0:02:41.2]} 6. Bd3 {[%clk 0:02:56.7]} 6... Bb7 {[%clk 0:02:41.3]}
7. O-O {[%clk 0:02:56.6]} 7... d5 {[%clk 0:02:41.3]} 8. cxd5 {[%clk 0:02:52.5]}
8... exd5 {[%clk 0:02:41.7]} 9. Ne5 {[%clk 0:02:50.4]} 9... Nbd7 {[%clk
0:02:41.3]} 10. f4 {[%clk 0:02:46.5]} 10... Bxc3 {[%clk 0:02:39.9]} 11. bxc3
{[%clk 0:02:46.2]} 11... Ne4 {[%clk 0:02:39.7]} 12. c4 {[%clk 0:02:42.5]} 12...
dxc4 {[%clk 0:02:23.6]} 13. Bxc4 {[%clk 0:02:38.7]} 13... Ndf6 {[%clk 0:02:16]}
14. Ba3 {[%clk 0:02:32.9]} 14... Nd6 {[%clk 0:02:08.8]} 15. Bd3 {[%clk
0:02:25.6]} 15... Re8 {[%clk 0:01:43.1]} 16. Rc1 {[%clk 0:02:24.6]} 16... Bd5
{[%clk 0:01:31.2]} 17. Qc2 {[%clk 0:02:21.3]} 17... c6 {[%clk 0:00:51.4]} 18.
Nxc6 {[%clk 0:02:13.9]} 18... Bxc6 {[%clk 0:00:50.9]} 19. Qxc6 {[%clk
0:02:14.8]} 19... Rxe3 {[%clk 0:00:46.7]} 20. Bxh7+ {[%clk 0:01:53.6]} 20...
Kxh7 {[%clk 0:00:33.8]} 21. Bxd6 {[%clk 0:01:30.2]} 21... Ne4 {[%clk 0:00:16.1]}
22. Be5 {[%clk 0:01:30]} 22... f6 {[%clk 0:00:15.7]} 23. Rfe1 {[%clk 0:01:30]}
23... Rc8 {[%clk 0:00:06.2]} 24. Rxe3 {[%clk 0:00:39.8]} 24... Rxc6 {[%clk
0:00:05.9]} 25. Rxc6 {[%clk 0:00:38.3]} 25... fxe5 {[%clk 0:00:05.1]} 26. Rxe4
{[%clk 0:00:18]} 26... Qd5 {[%clk 0:00:04.9]} 27. Re2 {[%clk 0:00:06.5]} 27...
Qxc6 {[%clk 0:00:04]} 28. fxe5 {[%clk 0:00:05]} 28... Kg8 {[%clk 0:00:03.8]} 29.
e6 {[%clk 0:00:04.8]} 29... Kf8 {[%clk 0:00:04.3]} 30. e7+ {[%clk 0:00:05.4]}
30... Ke8 {[%clk 0:00:04.3]} 31. Kf2 {[%clk 0:00:06.1]} 31... Qd5 {[%clk
0:00:04.2]} 32. Rd2 {[%clk 0:00:04.4]} 32... Kxe7 {[%clk 0:00:04.4]} 33. Ke3
{[%clk 0:00:05.2]} 33... a5 {[%clk 0:00:04.7]} 34. Kd3 {[%clk 0:00:05.7]} 34...
b5 {[%clk 0:00:05.1]} 35. Re2+ {[%clk 0:00:06.3]} 35... Kd7 {[%clk 0:00:05.5]}
36. Rc2 {[%clk 0:00:06.6]} 36... a4 {[%clk 0:00:05.3]} 37. Rd2 {[%clk
0:00:06.8]} 37... b4 {[%clk 0:00:05.5]} 38. Ke3 {[%clk 0:00:07.5]} 38... b3
{[%clk 0:00:05.4]} 39. axb3 {[%clk 0:00:08.4]} 39... Qxb3+ {[%clk 0:00:05.6]}
40. Rd3 {[%clk 0:00:08.4]} 40... Qb2 {[%clk 0:00:06.1]} 41. Rd2 {[%clk
0:00:08.8]} 41... a3 {[%clk 0:00:06.7]} 0-1